Cogmind - Beta 13 @@@ ROGUE MODE // 2024.04.03 @ 19:29:31 Player: Baxter Result: Destroyed by as-38816 with Assembled Blade Performance ------------- Evolutions (0) 0 Regions Visited (2) 400 Robots Destroyed (26) 130 Value Destroyed (404) 404 Prototype IDs (0) 0 Alien Tech Used (0) 0 Bonus (0) 0 TOTAL SCORE: 934 Bonus ------- None Cogmind --------- Core Integrity 0/250 Matter 246/300 Energy 248/250 System Corruption 9% Temperature Cool (0) Movement Rolling (140) Ox4 Location -10/Mines Parts ------- > --- POWER (1) -------- Ion Engine > --- PROPULSION (2) --- Wheel Wheel > --- UTILITY (2) ------ Huge Storage Unit Structural Scanner > --- WEAPON (2) ------- Light Assault Rifle Light Assault Rifle > --- INVENTORY (25) --- Light Ion Engine Light Ion Engine Light Ion Engine Light Ion Engine Light Treads Light Treads Light Treads Light Treads Light Treads Light Treads Light Treads Light Treads Wheel Medium Matter Pod (100) Medium Matter Pod (100) Large Matter Pod (150) Large Matter Pod (132) Large Matter Pod (0) Structural Scanner Light Armor Plating Hacking Suite Small Laser Light Assault Rifle Mining Claw Mining Claw Peak State ------------ > --- POWER ------------ Ion Engine > --- PROPULSION ------- Light Treads Wheel > --- UTILITY ---------- Huge Storage Unit Seismic Detector > --- WEAPON ----------- Light Assault Rifle Mining Claw > --- INVENTORY -------- Light Ion Engine Light Ion Engine Light Ion Engine Light Treads Light Treads Light Treads Light Treads Wheel Wheel Wheel Medium Matter Pod Medium Matter Pod Large Matter Pod Structural Scanner Hacking Suite Small Laser Assault Rifle Mining Claw [Rating: 9] Favorites ----------- Power Ion Engine Engine Ion Engine Propulsion Wheel Treads Light Treads Wheel Wheel Utility Huge Storage Unit Device Seismic Detector Storage Huge Storage Unit Weapon Light Assault Rifle Energy Gun Small Laser Ballistic Gun Light Assault Rifle Slashing Weapon Mining Claw Build | -11 -10 -10 ------- Run | Yrd Mat Min Slots Evolved . | . . . Power . | . . . Propulsion . | . . . Utility . | . . . Weapon . | . . . Parts Attached 31 | 7 15 9 Power 5 | 1 2 2 Engine 5 | 1 2 2 Core . | . . . Reactor . | . . . Propulsion 6 | 2 2 2 Treads 2 | 1 1 . Leg . | . . . Wheel 4 | 1 1 2 Hover . | . . . Flight . | . . . Utility 5 | 2 3 . Device 2 | 1 1 . Storage 3 | 1 2 . Processor . | . . . Hackware . | . . . Protection . | . . . Artifact . | . . . Weapon 15 | 2 8 5 Energy Gun 3 | 2 1 . Energy Cannon . | . . . Ballistic Gun 9 | . 5 4 Ballistic Cannon . | . . . Launcher . | . . . Special Weapon . | . . . Impact Weapon . | . . . Slashing Weapon 3 | . 2 1 Piercing Weapon . | . . . Special Melee Weapon . | . . . Unidentified Prototypes . | . . . Parts Lost 5 | . 3 2 Power 3 | . 2 1 Propulsion 1 | . . 1 Utility . | . . . Weapon 1 | . 1 . Highest Loss Streak 2 | . 2 1 To Critical Strikes . | . . . Average Slot Usage (%) 94 | . 94 98 Engine 13 | . 13 13 Treads 12 | . 14 7 Wheel 15 | . 14 20 Device 13 | . 12 14 Storage 14 | . 14 14 Energy Gun 2 | . 3 . Ballistic Gun 17 | . 16 23 Slashing Weapon 5 | . 5 4 Naked Turns . | . . . Heaviest Build 89 | 12 89 89 Greatest Support 20 | 20 20 20 Greatest Overweight (x) 8 | 1 8 8 Average Overweight (x) 4 | . 5 5 Largest Inventory Capacity 25 | 8 25 25 Average Capacity 20 | 7 20 25 Most Carried 25 | 8 25 25 Average Carried 16 | 4 15 24 Final Capacity 25 | 8 25 25 Final Carried 25 | 8 24 25 Class Distribution -------------------- 81% | Mutant 18% | Scavenger-Mutant Dominant Class ---------------- Mutant | -10/Materials Scavenger-Mutant | -10/Mines Resources | -11 -10 -10 ----------- Run | Yrd Mat Min Matter Collected 1168 | 191 870 107 Remotely . | . . . Salvage Created 709 | 25 554 130 Parts 65 | 5 44 16 Haulers Intercepted 2 | . 2 . Recyclers Shooed . | . . . Parts Field Recycled . | . . . Retrieved Matter . | . . . Parts Self-Destructed . | . . . Prevented . | . . . Kills | -11 -10 -10 ------- Run | Yrd Mat Min Combat Hostiles Destroyed 14 | . 9 5 Guns 14 | . 9 5 Classes Destroyed 9 | 1 7 1 Worker 4 | . 3 1 Builder 2 | . 1 1 Tunneler 2 | 1 1 . Hauler 2 | . 2 . Operator 1 | . 1 . Watcher 2 | . 2 . Swarmer 6 | . 3 3 Grunt 7 | . 6 1 Assembled 1 | . . 1 Best Kill Streak 3 | 1 3 2 Combat Bots Only 3 | . 3 2 Max Kills in Single Turn 2 | 1 2 1 Gunslinging . | . . . Exploded . | . . . Melee . | . . . Uniques/NPCs Destroyed . | . . . Combat | -11 -10 -10 -------- Run | Yrd Mat Min Hostile Shots Fired 117 | . 65 52 Missed 24 | . 13 11 Damage Taken 1141 | . 654 487 Core 259 | . 158 101 Absorbed by Shields . | . . . Core Remaining (%) 100 | 100 . . Volleys Fired 109 | 2 75 32 Largest 2 | 2 2 2 Hottest 90 | 90 70 40 Shots Fired 158 | 4 111 43 Gun 158 | 4 111 43 Cannon . | . . . Launcher . | . . . Special . | . . . Kinetic 133 | . 90 43 Thermal 25 | 4 21 . Explosive . | . . . Electromagnetic . | . . . Robot Hit Streak 12 | 1 12 5 Robot Miss Streak 7 | 1 3 7 Penetration Max . | . . . Secondary Targets . | . . . Shots Hit Robots 112 | 2 85 25 Core Hits 49 | 1 35 13 Critical Kills 1 | . 1 . Critical Parts Destroyed . | . . . Critical Strikes 2 | . 2 . Burn 1 | . 1 . Destroy 1 | . 1 . Melee Attacks 29 | . 17 12 Impact . | . . . Slashing 29 | . 17 12 Piercing . | . . . Sneak Attacks 6 | . 4 2 Combat Hostiles . | . . . Follow-up Attacks . | . . . Damage Inflicted 1286 | 25 974 287 Guns 919 | 25 707 187 Cannons . | . . . Explosions . | . . . Melee 335 | . 235 100 Ramming 32 | . 32 . Kinetic 745 | . 558 187 Thermal 174 | 25 149 . Explosive . | . . . Electromagnetic . | . . . Impact . | . . . Slashing 335 | . 235 100 Piercing . | . . . Highest Corruption 9 | . 9 9 Average Corruption 6 | . 5 9 Corruption Purged . | . . . Corruption Blocked . | . . . Effects 52 | . 40 12 Message Errors 6 | . 6 . Matter Fused 15 | . 11 4 Heat Flow Errors 8 | . 6 2 Energy Discharges 4 | . 3 1 Parts Rejected 1 | . 1 . Parts Fused 1 | . 1 . Data Loss (minor) 11 | . 8 3 Misfires 3 | . 2 1 Weapon Failures 3 | . 2 1 Overload Shots . | . . . Overflow Damage 1 | . 1 . Projectiles . | . . . Explosions . | . . . Melee 1 | . 1 . Knockbacks . | . . . Impact . | . . . Kinetic . | . . . Secondary . | . . . Self-Inflicted Damage 31 | . 31 . Shots . | . . . Rammed 1 | . 1 . Targets Rammed 1 | . 1 . Kicked . | . . . Crushed . | . . . Highest Temperature 339 | 60 339 260 Average Temperature 111 | 33 115 115 Received Heat Transfer 315 | . 282 33 Effects 3 | . 1 2 Energy Bleed 2 | . 1 1 Interference 1 | . . 1 Siege Activations . | . . . Robots Corrupted . | . . . Combat Hostiles . | . . . Parts Fried . | . . . Impact Corruptions . | . . . Robots Melted . | . . . Combat Hostiles . | . . . Parts Melted 1 | . 1 . Heat Transferred 556 | 74 482 . Parts Sabotaged . | . . . Parts Stolen . | . . . Parts Stripped . | . . . Power Chain Reactions . | . . . Alert | -11 -10 -10 ------- Run | Yrd Mat Min Peak Influence 128 | 5 111 128 Initial 30 | . 3 30 Average 49 | 2 42 99 Maximum Alert Level . | . . . Low Security (%) 100 | 100 100 100 Level 1 . | . . . Level 2 . | . . . Level 3 . | . . . Level 4 . | . . . Level 5 . | . . . High Security . | . . . Max Security . | . . . Squads Dispatched 2 | . 2 . Investigation 1 | . 1 . Extermination . | . . . Reinforcement 1 | . 1 . Assault . | . . . Garrison . | . . . Intercept . | . . . Searches Triggered . | . . . Construction Impeded . | . . . Haulers Reinforced . | . . . Active Scanning Responses . | . . . Cargo Convoy Interrupts . | . . . Stealth | -11 -10 -10 --------- Run | Yrd Mat Min Distress Signals 1 | . . 1 Communications Jammed . | . . . Distress Signals . | . . . Times Spotted 26 | . 19 7 Peak Tracking Total 3 | . 3 3 Tactical Retreats 1 | . . 1 Traps | -11 -10 -10 ------- Run | Yrd Mat Min Traps Triggered 6 | . 6 . Indirectly . | . . . Trap Hack Attempts . | . . . Triggered . | . . . Disarmed . | . . . Reprogrammed . | . . . Reused . | . . . Traps Extracted . | . . . Installed . | . . . Triggered . | . . . Machines | -11 -10 -10 ---------- Run | Yrd Mat Min Machines Disabled . | . . . Max in Single Turn . | . . . Machines Repaired . | . . . Machines Dismantled . | . . . Machines Sabotaged . | . . . Overloaded Fab Kills . | . . . Hacking | -11 -10 -10 --------- Run | Yrd Mat Min Machines Accessed 6 | . 6 . Terminals 6 | . 6 . Fabricators . | . . . Repair Stations . | . . . Recycling Units . | . . . Scanalyzers . | . . . Garrison Access . | . . . Total Hacks 19 | . 19 . Successful 12 | . 12 . Failed 6 | . 6 . Catastrophic . | . . . Database Lockouts 1 | . 1 . Manual 14 | . 14 . Terminals 19 | . 19 . Fabricators . | . . . Repair Stations . | . . . Recycling Units . | . . . Scanalyzers . | . . . Garrison Access . | . . . Terminal Hacks 5 | . 5 . Robot Analysis 1 | . 1 . Recycling Unit Index 1 | . 1 . Alert Level 1 | . 1 . Zone Layout 2 | . 2 . Fabricator Hacks . | . . . Repair Station Hacks . | . . . Recycling Unit Hacks . | . . . Scanalyzer . | . . . Garrison Access Hacks . | . . . Unauthorized Hacks 7 | . 7 . Terminals 7 | . 7 . Botnet 6 | . 6 . Operators 1 | . 1 . Fabricators . | . . . Repair Stations . | . . . Recycling Units . | . . . Scanalyzers . | . . . Garrison Access . | . . . Data Cores Recovered . | . . . Used . | . . . Hacking Detections 4 | . 4 . Full Trace Events . | . . . Feedback Events . | . . . Feedback Blocked . | . . . Robot Schematics Acquired . | . . . Robots Built . | . . . Authchips . | . . . Time . | . . . Total Robot Build Rating . | . . . Part Schematics Acquired . | . . . Parts Built . | . . . Authchips . | . . . Time . | . . . Total Part Build Rating . | . . . Parts Repaired . | . . . Time . | . . . Parts Recycled . | . . . Recycled Matter . | . . . Retrieved Matter . | . . . Retrieved Components . | . . . Parts Scanalyzed . | . . . Part Schematics Acquired . | . . . Parts Damaged . | . . . Bothacking | -11 -10 -10 ------------ Run | Yrd Mat Min Used RIF Installer . | . . . Robots Hacked . | . . . Non-combat . | . . . Combat . | . . . Robot Hacks Applied . | . . . Relay Couplers Released . | . . . Fabnet Peak Effective % . | . . . Robots Rewired . | . . . Allies Hacked . | . . . Hacks Repelled . | . . . Allies | -11 -10 -10 -------- Run | Yrd Mat Min Total Allies . | . . . Largest Group . | . . . Highest-Rated Group . | . . . Highest-Rated Ally . | . . . Total Orders . | . . . Ally Attacks . | . . . Total Damage . | . . . Kills . | . . . Allies Corrupted . | . . . Allies Melted . | . . . Intel | -11 -10 -10 ------- Run | Yrd Mat Min Robot Analysis Total 1 | . 1 . Derelict Logs Recovered . | . . . Drone Launches . | . . . Drone Recoveries . | . . . Exploration | -11 -10 -10 ------------- Run | Yrd Mat Min Turns Passed 2219 | 79 1803 337 Spaces Moved 999 | 60 810 129 Core 3 | 3 . . Treads 253 | 1 252 . Legs . | . . . Wheels 743 | 56 558 129 Hover . | . . . Flight . | . . . Fastest Speed 50 | 50 95 140 Average Speed 176 | 91 185 165 Slowest Speed 480 | 160 480 200 Overloaded Moves . | . . . Propulsion Burnouts . | . . . Robots Hopped . | . . . Cave-ins Triggered . | . . . Exploration Rate (%) 40 | 4 93 23 Regions Visited 2 Branch Regions 1 Pre-discovered Areas . | . . . Known Exits Taken . | . . . Unknown Exits Taken 2 | 1 1 . Scrap Searched . | . . . Spaces Dug 10 | . 7 3 Terrain Destroyed 11 | . 8 3 Melee 10 | . 7 3 Projectile . | . . . AOE . | . . . Terrain Rammed 1 | . 1 . Walls Destroyed 1 | . 1 . Machines Disabled . | . . . Actions | -11 -10 -10 --------- Run | Yrd Mat Min Total 1251 | 76 981 194 Wait 44 | . 35 9 Move 997 | 59 809 129 Hop . | . . . Pick Up 30 | 8 21 1 Fast Attach 10 | 7 2 1 Attach 3 | . 2 1 Detach . | . . . Swap 18 | . 11 7 Drop 9 | . 7 2 Fire 109 | 2 75 32 Melee 29 | . 17 12 Ram 2 | . 2 . Kick . | . . . Crush . | . . . Escape Stasis . | . . . Rewire . | . . . Trap . | . . . Miscellaneous . | . . . Route ------- -11/Scrapyard -10/Materials (discovered 5 exits: [*Mat x3] / [*Min] / [Sub]) -10/Mines (discovered 1 exit: [*Mat]) History --------- Turn | Location | Event 8 | -11/Scrapyard | Discovered new exit (range 15) 80 | -11/Scrapyard | Entered Materials 302 | -10/Materials | Build established: Mutant 531 | -10/Materials | Central database locked down 936 | -10/Materials | Discovered new exit (range 11) 1009 | -10/Materials | Discovered new exit (range 13) 1437 | -10/Materials | Core integrity fell below 50% 1466 | -10/Materials | Discovered new exit (range 15) 1625 | -10/Materials | Discovered new exit (range 13) 1784 | -10/Materials | Discovered new exit (range 14) 1883 | -10/Materials | Entered Mines 2011 | -10/Mines | Assembled infested the area 2169 | -10/Mines | Discovered new exit (range 5) 2216 | -10/Mines | Core integrity fell below 20% 2220 | -10/Mines | Destroyed by as-38816 with Assembled Blade Last Messages --------------- Lgt. Assault Rifle. 02103_ System corrupted: Lgt. Assault Rifle misfires. 02121_ System corrupted: Matter fused (-8). 02139_ U-05 Engineer builds a Wall. 02141_ System corrupted: Component data lost. 02143_ U-05 Engineer builds a Wall. 02156_ System corrupted: Matter fused (-5). 02169_ EXIT=FOUND 02170_ U-05 Engineer builds a Wall. 02171_ Sneak attack on K-01 Serf. 02171_ K-01 Serf destroyed. 02174_ Acquired 15 matter. 02179_ System corrupted: Energy discharge (-60). 02193_ Sneak attack on U-05 Engineer. 02193_ U-05 Engineer destroyed. 02196_ Dropped Lgt. Assault Rifle. 02197_ Acquired Structural Scanner. 02198_ Acquired 25 matter. 02220_ as-66878 destroyed. Map ----- +----------------------------------------------------+ | ???????????????????????????????????????? | | ???????????????????????????????????????? | | ???????????????????????????????????????? | | ???????????????????????????????????????? | | ???????????????????????????????????????? | | ???????????????????????????????????????? | | ???????????????????????????????????????? | | ???????????????????????????????????????? | | ??????????????????????????##########???? | | ??????????????????????????# """ #???? | | ??????????????????????????# """ < #???? | | ??????????????????????????# """ #???? | | ??????????????????????????# = #???? | | ??????????????????????????# ! #???? | | ??????????????????????????#### #####???? | | ?????????????????????????????# #???????? | | ?????????????????????????????# #???????? | | ?????????????????????????????# #???????? | | ??????????????????????????#### ######??? | | ??????????????????????????# #######?? | | ??????????????????????????# ## ####? | | ????????????????????????### #### #### | | ????????????????????????#[ #?## * ### | | ????????????????????????#!###?### % ## | | ????????????????????????# #???##### ## | | ????????????????????????#@#????##### ## | | ??????????????? ????????#a#????##### ### | | ???????????????? ???????#|#???##### ### | | ???????????????? ??????#!####### ##? | | ???????????????? ???? ###### ###? | | ?????????????????"" ?%! ### ###? | | ????????????????""" ######### ## ###?? | | ????????????? """" ######## #######?? | | ?????????????# #### ######??? | | ??????????????? ### ######??? | | ?????????????????????## ######??? | | ?????????????????????### ##??? | | ?????????????????????#### ##??? | | ??????????????????????### ####??? | | ???????????????????????## #####?? | | ???????????????????###### ###?? | | ???????????????????## ##?? | | ???????????????????## #### ### ##?? | | ???????????????????## ######## ##?? | | ???????????????????## ####### ###?? | | ???????????????????## ####?? | | ???????????????????## ####??? | | ???????????????????## ###### # ####???? | | ???????????????????## ###### ######????? | | ????????????????????# #???## #####?????? | +----------------------------------------------------+ Best States ------------- Heat Dissipation 25 Energy Generation 10 Energy Capacity 250 Matter Stores 300 Matter Capacity 300 Sight Range 16 Terrain Scan Density 10 Evasion (%) 44 Recoil Reduction 1 Item Schematics ----------------- None Robot Schematics ------------------ None Fabricated ------------ Nothing Alien Tech Used ----------------- None Achievements -------------- None Challenges ------------ None Game ------ Seed FocalBarrageFlail Manual? 0 Play Time 00:15:24 Cumulative 80.0 hours Start 2024.04.03 @ 19:13:53 End 2024.04.03 @ 19:29:31 Sessions 5 Manual Loads 0 Difficulty Rogue Special Mode None Game No. 79 Rogue 79 Adventurer 0 Explorer 0 Win Type - Total 1 Types 1/0/0/0/0/0/0/0/0 Lore% 37 Gallery% 48 Achievement% 37 Wizard Run 0 Options --------- Layout 1 ASCII 0 Keyboard 0 Movement Numpad Keybinds 0 Fullscreen 2 Font 24/X11 Map View 50x35 Zoom Use 2% Tactical HUD 1 Map Filters NONE Filters NONE Steam 0 RUN: 0a243313-4dfe-421b-b78d-cdc2e8ff8f17